bitfinex/quotes_ETHUSD_20250626
["timestamp","ask_amount","ask_price","bid_price","bid_amount"]
[1750942283013,0.96933993,2439.6,2438.9,4.10020911]
[1750942283014,0.7524,2439.9,2439.0,4.100041]
[1750942283199,0.2048,2439.4,2439.3,4.09953675]
[1750942283381,0.2048,2439.4,2439.3,4.86273675]
[1750942284397,0.7524,2439.9,2439.5,4.09908648]
[1750942284601,0.2048,2439.6,2439.5,4.09908648]
[1750942286386,0.2048,2439.6,2439.4,4.09929504]
[1750942286591,0.2048,2439.6,2439.5,4.09920065]
[1750942287817,0.7641,2440.4,2439.7,0.7606]
[1750942288036,10.7641,2440.4,2439.7,0.7606]
[1750942288335,11.73333519,2440.4,2439.8,4.09861184]
[1750942288519,0.55,2440.3,2439.8,4.09861184]
[1750942288819,1.96423352,2440.3,2439.8,4.09861184]
[1750942289113,0.55,2440.3,2439.8,4.09861184]
[1750942289618,0.55,2440.3,2439.9,4.09849972]
[1750942289792,0.55,2440.3,2439.8,4.09865084]
[1750942290198,0.55,2440.3,2439.7,4.85945464]
[1750942290402,0.55,2440.3,2439.9,4.09847875]
[1750942290716,0.55,2440.3,2439.7,11.75842131]
[1750942290920,0.55,2440.3,2439.8,1.17584213]
[1750942291093,0.55,2440.3,2439.6,4.09900565]
[1750942291296,0.55,2440.3,2439.2,4.85825428]
[1750942291297,1.3473,2440.3,2439.2,4.85825428]
[1750942291490,0.7973,2440.0,2439.4,4.09928661]
[1750942291709,0.55,2439.9,2439.5,4.0990362]
[1750942291913,0.55,2439.9,2439.6,4.09901355]
[1750942292894,0.55,2440.1,2439.7,4.09878019]
[1750942293641,0.55,2440.1,2439.6,4.86625849]
[1750942294419,0.55,2440.1,2439.6,0.7673]
[1750942294740,0.55,2440.1,2439.6,4.86631477]
[1750942295033,0.8223,2439.8,2438.5,1.41068559]
[1750942295234,0.55,2439.4,2438.6,4.10071352]
[1750942295405,0.55,2439.4,2438.7,4.10045923]
[1750942296320,0.55,2439.4,2438.8,4.10036484]
[1750942296531,0.55,2439.4,2438.9,4.10020507]
[1750942296712,0.55,2439.4,2438.6,16.944]
[1750942296901,0.55,2439.4,2439.1,4.09984839]
[1750942297229,0.55,2439.4,2439.0,4.09996084]
[1750942297797,0.2048,2439.2,2439.0,4.09996084]
[1750942297998,0.2048,2439.2,2439.1,4.0998729]
[1750942298225,0.2048,2439.2,2439.0,4.09998485]
[1750942298401,0.2048,2439.2,2439.0,4.100041]
[1750942298599,0.2048,2439.2,2438.9,4.91509388]
[1750942298600,0.2048,2439.2,2438.9,4.91502558]
[1750942299103,0.2048,2439.2,2438.9,0.8149]
[1750942299306,0.55,2439.4,2438.7,4.10048245]
[1750942299614,0.2048,2439.0,2438.7,4.10048245]
[1750942300199,0.2048,2439.0,2438.9,4.10020911]
[1750942300640,0.2048,2439.0,2438.7,6.89853312]
[1750942301740,0.2048,2439.0,2438.8,4.10035886]
[1750942302314,1.0087,2439.0,2438.7,6.89853617]
[1750942303419,1.0087,2439.0,2438.7,2.79807693]
[1750942303837,0.55,2438.9,2438.6,0.2048]
[1750942304032,0.2048,2438.8,2438.5,12.88376178]
[1750942304234,0.2048,2438.8,2438.6,4.10069813]
[1750942304437,0.2048,2438.8,2438.5,12.8838019]
[1750942304950,0.2048,2438.8,2438.5,5.9598019]
[1750942305158,0.2048,2438.8,2438.5,8.781]
[1750942305450,0.2048,2438.8,2438.5,12.88187164]
[1750942306145,0.2048,2438.8,2438.5,5.95987164]
[1750942306351,0.2048,2438.8,2438.5,12.88187164]
[1750942306648,0.2048,2438.8,2438.6,4.10069631]
[1750942306848,0.2048,2438.8,2438.6,4.10071352]
[1750942307054,0.2048,2438.8,2438.7,4.10054537]
[1750942319176,0.2048,2438.8,2438.6,4.10066042]
[1750942319672,0.2048,2438.8,2438.7,4.10054537]
[1750942321050,1.3025,2438.7,2438.5,4.10079853]
[1750942321247,0.2048,2438.6,2438.5,4.10079853]
[1750942321571,0.7548,2438.6,2438.5,4.10079853]
[1750942321767,0.2048,2438.6,2438.5,6.60889397]
[1750942322157,0.2048,2438.6,2438.5,2.50809544]
[1750942322371,0.2048,2438.6,2438.5,4.10088168]
[1750942323986,0.2048,2438.6,2438.5,6.881]
[1750942324658,0.2048,2438.6,2438.3,4.65886311]
[1750942324659,0.55,2438.4,2438.3,0.55774221]
[1750942324860,0.55,2438.4,2438.1,0.2204156]
[1750942324861,0.55,2438.2,2438.1,0.2204156]
[1750942325184,0.2048,2438.2,2438.1,4.32197008]
[1750942325554,0.2048,2438.2,2438.1,0.2204156]
[1750942325771,0.2048,2438.2,2438.1,4.32197008]
[1750942325974,0.2048,2438.2,2438.1,0.2204156]
[1750942326376,0.2048,2438.2,2438.1,11.20097008]
[1750942327405,0.2048,2438.2,2438.1,13.53903627]
[1750942327709,0.8328,2438.7,2438.4,4.1009309]
[1750942328065,0.8328,2439.0,2438.6,4.10057284]
[1750942328602,0.55,2438.9,2438.6,4.10057284]
[1750942328988,0.2048,2438.6,2438.5,4.10079537]
[1750942330301,4.01304039,2440.1,2438.6,0.8078]
[1750942330491,0.97311872,2439.9,2439.4,4.09935715]
[1750942330804,10.0,2439.8,2438.9,0.8078]
[1750942331117,1.72593467,2439.7,2439.0,4.100041]
[1750942331319,7.2593467,2440.0,2439.3,4.09953106]
[1750942331883,7.2593467,2440.0,2439.2,4.09962633]
[1750942332428,0.55,2439.9,2439.0,4.09998427]
[1750942332810,0.55,2439.9,2439.2,4.09967377]
[1750942333428,0.7924,2439.8,2438.9,6.892]
[1750942333726,0.55,2439.7,2439.3,4.09942803]
[1750942333932,0.55,2439.7,2439.4,4.09932264]
[1750942334088,0.55,2439.7,2439.3,4.09946041]
[1750942334437,0.55,2439.7,2439.4,4.09934163]
[1750942334734,0.55,2439.7,2439.4,4.09928117]
[1750942335507,0.55,2439.7,2439.4,4.09928117]
[1750942336018,0.55,2439.7,2439.2,4.09963543]
[1750942336314,0.55,2439.7,2439.3,4.09953559]
[1750942336921,0.55,2439.7,2439.4,4.09935694]
[1750942337090,0.55,2439.7,2439.2,4.09964119]
[1750942337423,0.55,2439.7,2439.2,4.09970482]
[1750942337623,0.55,2439.4,2438.8,4.10024713]
[1750942337826,0.55,2439.2,2438.8,4.10024713]
[1750942338124,0.55,2439.2,2438.6,4.10071352]
[1750942338306,0.55,2439.0,2438.5,4.10079926]
[1750942339207,0.55,2439.0,2438.6,4.10070334]
[1750942340318,0.55,2439.0,2438.5,4.10077783]
[1750942340518,0.55,2439.0,2438.5,1.69437608]
[1750942341287,0.2048,2438.5,2438.2,5.95129316]
[1750942341487,0.2048,2438.5,2438.1,7.1074156]
[1750942341488,0.7548,2438.2,2438.1,0.2204156]
[1750942341690,0.2048,2438.2,2438.1,0.2204156]
[1750942342121,0.2048,2438.2,2438.1,15.09747008]
[1750942342336,0.7872,2439.2,2438.5,4.10072906]
[1750942342641,0.55,2439.1,2438.5,4.10086164]
[1750942342789,0.55,2439.1,2438.5,5.79645872]
[1750942343190,0.55,2438.9,2438.2,0.7755]
[1750942343416,0.55,2438.9,2438.2,9.5315]
[1750942343621,0.55,2438.9,2438.4,4.10103886]
[1750942344191,0.55,2438.9,2438.3,4.10113181]
[1750942345388,0.55,2438.7,2438.1,6.17186266]
[1750942345718,0.55,2438.5,2438.1,0.2204156]
[1750942346024,0.55,2438.3,2438.1,0.2204156]
[1750942346428,0.8123,2438.4,2438.1,4.32195628]
[1750942346726,0.55,2438.5,2438.2,0.43219563]
[1750942347303,0.8096,2438.5,2438.1,0.2204156]
[1750942347529,0.55,2438.4,2438.1,0.2204156]
[1750942348224,0.55,2438.2,2438.1,0.2204156]
[1750942349716,11.3026,2438.2,2438.1,0.2204156]
[1750942350021,11.3026,2438.2,2436.8,4.10365849]
[1750942350022,0.55,2437.5,2436.8,4.10365849]
[1750942350733,0.55,2437.5,2436.8,4.10361645]
[1750942350898,0.55,2437.5,2437.1,4.10309891]
[1750942351096,10.0,2438.1,2436.9,2.6962]
[1750942351097,0.7509,2437.8,2436.9,2.6962]
[1750942351339,0.55,2437.7,2437.1,4.10322484]
[1750942351514,0.55,2437.7,2437.2,4.51331271]
[1750942351834,0.55,2437.7,2437.3,4.10289093]
[1750942352003,0.55,2437.7,2437.4,4.10267597]
[1750942352204,0.2048,2437.4,2437.3,4.10279755]
[1750942352827,0.2048,2437.4,2437.2,4.51334541]
[1750942353022,0.2048,2437.4,2437.3,4.55423529]
[1750942353227,1.3284,2437.3,2436.4,4.1042498]
[1750942353426,1.3284,2437.3,2436.0,4.91070876]
[1750942353427,11.3284,2437.3,2436.0,4.91074414]
[1750942353635,1.3284,2437.3,2436.3,0.7649]
[1750942353937,1.3284,2437.3,2436.8,0.7649]
[1750942354234,1.3284,2437.3,2436.9,4.10353811]
[1750942354424,0.8186,2437.2,2435.8,0.7518]
[1750942354625,0.55,2436.9,2435.8,0.7518]
[1750942354804,0.55,2436.9,2436.5,4.10421147]
[1750942355138,0.55,2436.9,2436.6,4.1039804]
[1750942355440,0.55,2436.9,2436.5,0.41042115]
[1750942355650,0.55,2436.7,2435.6,1.62618545]
[1750942355800,0.55,2436.5,2435.6,1.62618545]
[1750942356005,0.55,2436.5,2435.9,4.10512434]
[1750942356243,0.55,2436.5,2435.8,4.10536764]
[1750942356547,0.55,2436.5,2436.0,4.1050735]
[1750942356730,0.55,2436.5,2435.9,4.10513809]
[1750942356932,0.8113,2436.6,2435.9,1.57704426]
[1750942357239,0.55,2436.9,2435.9,0.756]
[1750942357438,0.55,2436.9,2436.2,4.10465011]
[1750942357638,0.55,2436.9,2435.9,0.756]
[1750942357807,0.55,2436.9,2436.1,4.10483979]
[1750942358008,0.55,2436.7,2436.0,4.10500548]
[1750942358242,0.55,2436.7,2435.9,4.86123547]
[1750942358243,0.55,2436.7,2436.1,4.10491495]
[1750942359118,0.55,2436.7,2436.2,4.10473559]
[1750942359635,0.55,2436.7,2436.4,4.1043169]
[1750942359937,0.55,2436.7,2436.5,4.10422015]
[1750942360237,0.7743,2437.0,2436.6,4.10396584]
[1750942360436,0.7743,2437.0,2436.2,2.6872]
[1750942360737,0.55,2436.9,2436.5,4.10413765]
[1750942360936,0.55,2437.2,2436.4,4.10436885]
[1750942361138,0.55,2437.0,2436.6,4.10397389]
[1750942361306,0.55,2437.0,2436.7,4.10391102]
[1750942361710,0.55,2437.0,2436.7,4.10380014]
[1750942362138,0.7582,2436.9,2436.5,4.10418753]
[1750942362316,0.7582,2436.9,2436.6,4.10405552]
[1750942362640,0.7582,2436.9,2436.3,0.3583815]
[1750942362641,0.7582,2436.9,2436.7,4.1039027]
[1750942363250,1.3082,2436.9,2436.8,4.10374261]
[1750942364221,0.2048,2436.8,2436.7,4.10383498]
[1750942364441,1.3082,2436.9,2436.7,4.10383498]
[1750942366221,0.2048,2436.7,2436.6,4.10395948]
[1750942366421,1.3082,2436.9,2436.7,4.10390453]
[1750942366615,1.3082,2436.9,2436.5,4.10415173]
[1750942366616,0.2048,2436.6,2436.5,4.10415173]
[1750942368951,0.2048,2436.6,2436.4,4.10435429]
[1750942369270,0.55,2436.8,2436.6,4.10395626]
[1750942370644,0.55,2436.8,2436.5,4.10412189]
[1750942370969,0.2048,2436.6,2436.3,2.2323815]
[1750942371133,0.2048,2436.6,2436.5,4.10424789]
[1750942371466,0.2048,2436.6,2436.4,4.10432962]
[1750942371667,0.2048,2436.6,2436.5,4.10424789]
[1750942373065,0.2048,2436.6,2436.3,2.2323815]
[1750942373370,0.2048,2436.4,2436.3,6.33682951]
[1750942373566,0.2048,2436.4,2436.3,5.97844801]
[1750942373871,0.2048,2436.4,2436.3,4.10444801]
[1750942375063,0.55,2436.8,2436.6,4.10397492]
[1750942375265,0.55,2436.8,2436.5,4.10417392]
[1750942375871,0.55,2436.8,2436.1,4.92629635]
[1750942376070,0.55,2436.8,2436.5,4.10415624]
[1750942376766,0.55,2436.8,2436.6,4.10391432]
[1750942376969,0.2048,2436.6,2436.5,4.89004789]
[1750942377175,0.2048,2437.3,2436.8,4.10374261]
[1750942377490,0.2048,2437.3,2437.2,4.10306909]
[1750942378380,5.29418318,2438.2,2437.6,4.10228915]
[1750942378381,1.77003739,2437.9,2437.6,4.10228915]
[1750942378577,0.7996,2437.9,2437.6,4.10228915]
[1750942378746,0.2048,2437.6,2437.5,4.10248492]
[1750942379147,0.2048,2437.6,2436.9,1.29125426]
[1750942379347,1.52043739,2437.8,2437.3,4.10288266]
[1750942379567,0.2048,2437.4,2437.3,4.10288266]
[1750942379801,0.2048,2437.4,2437.0,6.50486427]
[1750942380276,0.55,2437.3,2436.9,4.90573103]
[1750942380449,0.55,2437.3,2436.9,5.96543103]
[1750942380450,0.2048,2437.0,2436.9,5.96543103]
[1750942380650,0.2048,2437.0,2436.9,4.10343103]
[1750942381965,0.2048,2437.3,2437.0,0.7992]
[1750942382153,0.2048,2437.3,2437.1,4.103122]
[1750942382660,0.97043739,2437.4,2437.1,4.10315177]
[1750942382865,0.2048,2437.2,2437.1,4.10315177]
[1750942383184,0.2048,2437.2,2437.0,0.7992]
[1750942383185,0.2048,2437.2,2437.0,4.10333217]
[1750942383752,0.55,2437.1,2436.9,4.10348294]
[1750942384275,0.2048,2436.9,2436.8,4.10366768]
[1750942384644,0.8154,2436.9,2436.5,2.6612]
[1750942384841,0.8154,2437.1,2436.6,0.95802]
[1750942385042,0.8154,2437.6,2437.2,4.10293806]
[1750942385280,0.8154,2437.6,2437.0,0.7992]
[1750942385281,0.55,2437.5,2437.1,4.1031493]
[1750942385467,0.55,2437.5,2437.0,0.7992]
[1750942385468,0.55,2437.5,2437.0,4.90253122]
[1750942385669,0.55,2437.5,2437.0,4.10333122]
[1750942386175,0.8154,2437.6,2437.0,2.76260992]
[1750942386377,0.8313,2437.8,2437.3,4.10282561]
[1750942386566,0.8313,2437.8,2437.3,4.10286551]
[1750942386770,0.8313,2437.8,2437.3,4.10290075]
[1750942386771,0.55,2437.7,2437.3,4.10290075]
[1750942387182,0.55,2437.7,2437.4,4.10267752]
[1750942387477,0.55,2437.7,2437.2,4.10298788]
[1750942387688,0.55,2437.7,2437.3,4.10289381]
[1750942388179,0.55,2437.7,2437.2,4.1029963]
[1750942388345,0.78517374,2437.7,2437.2,4.1030635]
[1750942388801,0.78517374,2437.7,2437.0,5.0039098]
[1750942388802,0.78517374,2437.7,2437.1,4.10314977]
[1750942388983,0.78337682,2437.7,2437.1,4.10314977]
[1750942389170,0.78337682,2437.7,2437.2,4.10304414]
[1750942389345,0.54820308,2437.7,2437.1,4.10315106]
[1750942389789,0.54820308,2437.7,2437.0,4.10332496]
[1750942390577,0.8042,2437.6,2436.9,5.9655644]
[1750942390951,0.55,2437.5,2436.9,5.9655644]
[1750942391152,0.55,2437.5,2436.9,8.66459403]
[1750942391360,0.55,2437.5,2437.0,4.10339611]
[1750942391690,0.55,2437.5,2436.9,8.66452703]
[1750942391982,0.55,2437.5,2437.0,4.10338593]
[1750942392189,0.55,2437.5,2437.1,4.10308962]
[1750942392371,0.55,2437.5,2437.2,4.59595564]
[1750942393362,0.55,2437.5,2437.2,0.49297896]
[1750942393544,0.55,2437.5,2437.0,4.93007136]
[1750942393779,0.55,2437.5,2436.9,8.66451058]
[1750942393980,0.55,2437.5,2436.9,4.56102963]
[1750942394182,0.55,2437.3,2436.9,8.66459409]
[1750942394746,0.2048,2437.0,2436.9,4.56102963]
[1750942394950,0.2048,2437.0,2436.9,8.66460384]
[1750942395884,0.2048,2437.0,2436.9,4.56102963]
[1750942396084,0.2048,2437.0,2436.9,1.862]
[1750942396313,0.8298,2436.9,2436.6,0.95802]
[1750942396985,0.2048,2436.6,2436.4,4.10431089]
[1750942397188,0.2048,2436.6,2436.3,10.6353]
[1750942397354,0.2048,2436.5,2436.3,9.842]
[1750942397687,0.2048,2436.5,2436.2,13.07743869]
[1750942397986,0.2048,2436.5,2436.3,10.0]
[1750942398185,0.2048,2436.5,2436.3,12.77799437]
[1750942398488,0.2048,2436.4,2436.3,2.77799437]
[1750942398687,1.3462,2436.3,2436.0,0.2048]
[1750942398983,0.55,2436.9,2436.1,4.10481556]
[1750942399184,0.55,2436.9,2435.8,11.215122]
[1750942399185,0.2048,2436.3,2435.8,11.215122]
[1750942399390,0.55,2436.3,2435.9,4.1051643]
[1750942399694,0.55,2436.3,2435.8,6.905]
[1750942399695,0.2048,2436.1,2436.0,1.10101643]
[1750942400063,0.2048,2436.1,2435.8,14.10540098]
[1750942400263,0.2048,2436.1,2435.7,14.22657007]
[1750942400467,0.55,2436.2,2435.6,14.50479045]
[1750942400663,0.2048,2435.9,2435.6,14.50479045]
[1750942400878,1.3364,2436.4,2435.6,1.62618545]
[1750942401080,1.5412,2435.7,2435.6,0.2204156]
[1750942402177,0.8062,2435.6,2435.0,0.2048]
[1750942402375,0.8062,2435.4,2434.3,0.8135]
[1750942402583,0.8062,2435.4,2434.6,4.10745049]
[1750942402584,0.55,2435.3,2434.6,4.10745049]
[1750942402999,0.8062,2435.4,2434.3,0.8135]
[1750942403218,0.55,2435.3,2434.8,4.10700766]
[1750942403419,0.55,2435.3,2434.9,4.1069364]
[1750942403567,0.8062,2435.4,2434.9,4.10687293]
[1750942403766,0.55,2435.8,2434.9,1.58809314]
[1750942403972,0.55,2435.8,2435.3,4.10610786]
[1750942404181,0.55,2435.8,2435.3,4.10624798]
[1750942404375,0.55,2435.8,2435.3,4.10614106]
[1750942404580,0.55,2435.8,2435.1,4.10647111]
[1750942404803,1.8031,2435.8,2435.2,4.1064145]
[1750942405191,11.8031,2435.8,2435.3,4.10625977]
[1750942405387,1.8031,2435.8,2435.5,4.10582763]
[1750942405703,0.55,2435.8,2435.5,4.10582763]
[1750942406078,0.55,2435.8,2435.1,1.863]
[1750942406283,0.55,2435.8,2435.3,4.1061792]
[1750942406603,0.55,2435.8,2435.4,4.10606701]
[1750942406990,0.55,2435.8,2435.2,4.10641016]
[1750942407201,0.55,2435.8,2435.3,4.10616511]
[1750942408291,0.55,2435.8,2435.3,4.10626857]
[1750942408494,0.55,2435.8,2435.4,4.10601177]
[1750942408893,0.7948,2435.9,2435.2,4.10643889]
[1750942409095,0.8242,2436.2,2435.9,4.10516261]
[1750942409297,0.8242,2436.2,2435.8,4.10537416]
[1750942409496,0.8242,2436.2,2435.9,4.10514196]
[1750942409673,0.8242,2436.2,2435.5,4.10589691]
[1750942409870,1.881,2436.8,2436.2,4.10471331]
[1750942410207,1.881,2436.8,2435.3,14.40273554]
[1750942410208,10.0,2436.7,2435.7,2.6731]
[1750942410396,10.0,2436.7,2436.1,4.10490039]
[1750942410795,0.7593,2436.6,2436.0,4.10501959]
[1750942410993,0.55,2436.5,2436.0,4.10501959]
[1750942411305,0.55,2436.5,2435.8,4.10531544]
[1750942411509,0.55,2436.3,2435.9,4.10516242]
[1750942412320,0.2048,2436.0,2435.6,4.10575348]
[1750942412477,0.55,2436.3,2435.7,4.10543975]
[1750942412816,0.2048,2435.7,2435.6,4.10571301]
[1750942413516,0.2048,2435.7,2435.5,4.10589031]
[1750942413676,0.55,2435.8,2435.3,10.0]
[1750942413885,0.2048,2435.5,2435.4,4.10609861]
[1750942414091,0.2048,2435.5,2435.4,4.92733379]
[1750942414301,0.7548,2436.2,2435.9,4.10525528]
[1750942414499,0.2048,2435.9,2435.8,4.10542737]
[1750942414823,0.823,2436.4,2436.2,4.10464414]
[1750942415134,0.823,2436.4,2436.3,4.10458482]
[1750942415495,0.8037,2436.7,2436.4,4.10431019]
[1750942415703,0.205523,2436.6,2436.5,4.10424789]
[1750942415997,0.8037,2436.7,2436.6,4.10407945]
[1750942416297,1.25153,2436.8,2436.6,4.10399412]
[1750942416711,0.55,2436.8,2436.7,4.10391102]
[1750942417021,0.8064,2436.9,2436.7,4.1038457]
[1750942417219,0.2048,2436.7,2436.6,4.10399069]
[1750942417424,0.55,2436.8,2436.7,4.10383601]
[1750942418007,0.55,2436.8,2436.5,4.10420547]
[1750942418008,0.2048,2436.7,2436.6,4.10398806]
[1750942418219,0.55,2436.8,2436.1,4.30957793]
[1750942418523,0.2048,2436.5,2436.4,4.10441635]
[1750942422038,0.2048,2436.5,2436.4,4.89341635]
[1750942422239,0.2048,2436.5,2436.1,1.88]
[1750942422444,0.2048,2436.3,2436.2,4.10467394]
[1750942422646,1.3202,2436.4,2436.2,4.10467394]
[1750942422838,1.3202,2436.4,2436.3,4.10458482]
[1750942423539,0.7548,2436.3,2436.2,4.10472637]
[1750942423732,0.55,2436.3,2436.2,4.10472637]
[1750942423936,0.7702,2436.4,2435.8,4.10534227]
[1750942424108,0.55,2436.3,2435.8,4.10534227]
[1750942424617,0.55,2436.3,2435.9,4.10523443]
[1750942425036,0.55,2436.3,2435.5,15.98590419]
[1750942425236,0.55,2436.3,2435.9,4.10517576]
[1750942425443,0.55,2436.3,2435.6,4.10573867]
[1750942425647,0.55,2436.3,2436.1,4.10480412]
[1750942425945,0.55,2436.3,2436.0,4.10503455]
[1750942426160,0.55,2436.3,2436.1,4.10488955]
[1750942427262,0.7702,2436.4,2436.1,4.10488955]
[1750942428931,0.7702,2436.4,2435.7,4.10556448]
[1750942429141,0.7702,2436.4,2436.1,4.10478693]
[1750942429426,1.88,2436.9,2435.9,0.8132]
[1750942429642,0.55,2436.7,2436.4,4.10441377]
[1750942429955,0.55,2436.7,2436.3,4.10449865]
[1750942430188,0.87492,2436.7,2436.1,4.10492077]
[1750942430332,0.55,2436.7,2436.1,4.10487562]
[1750942430526,0.55,2436.7,2435.9,0.8132]
[1750942430866,0.8192,2437.2,2436.7,4.10391102]
[1750942431061,0.8192,2437.2,2436.6,4.10400148]
[1750942431226,0.55,2437.0,2436.5,4.10415596]
[1750942431840,0.55,2436.8,2436.6,4.10404818]
[1750942432044,0.55,2436.8,2436.7,4.10391102]
[1750942432728,0.55,2436.8,2436.6,4.10401981]
[1750942433135,0.55,2436.8,2436.5,4.10423787]
[1750942433442,0.55,2436.8,2436.3,5.98442296]
[1750942433980,0.2048,2436.4,2436.3,5.98442296]
[1750942434646,0.2048,2436.4,2436.3,4.10442296]
[1750942434839,0.2048,2436.4,2436.3,5.98442296]
[1750942435439,0.2048,2436.4,2436.2,1.88]
[1750942435631,0.2048,2436.4,2436.2,4.10465752]
[1750942436666,0.2048,2436.4,2436.1,5.98484527]
[1750942437159,0.55,2436.4,2436.1,4.10484527]
[1750942437351,0.2048,2436.2,2436.0,5.98499454]
[1750942437954,0.2048,2436.2,2436.1,4.1049218]
[1750942439650,0.2048,2436.2,2436.0,5.98501031]
[1750942440471,0.2048,2436.2,2436.1,4.1049218]
[1750942440871,0.2048,2436.2,2436.0,8.734]
[1750942441070,0.2048,2436.2,2436.0,12.83901208]
[1750942441374,0.2048,2436.2,2436.0,8.734]
[1750942441765,0.7621,2436.3,2435.8,4.93494118]
[1750942441947,0.2048,2436.0,2435.9,12.83913576]
[1750942442147,0.2048,2436.0,2435.9,4.10513576]
[1750942442348,0.2048,2436.0,2435.9,12.83825883]
[1750942442664,0.2048,2436.0,2435.9,4.10525883]
[1750942443282,0.2048,2436.0,2435.9,8.731]
[1750942443786,0.2048,2436.0,2435.9,12.83625883]
[1750942444978,0.2048,2436.0,2435.9,14.53042739]
[1750942445181,0.8217,2436.7,2436.4,4.10435374]
[1750942445384,0.8243,2437.0,2436.4,12.82935374]
[1750942445688,0.55,2436.9,2436.4,12.82935374]
[1750942446954,0.55,2436.9,2436.5,4.10423124]
[1750942447149,0.55,2436.9,2436.6,4.10399183]
[1750942447390,0.7793,2437.2,2436.7,4.10387003]
[1750942447595,0.2048,2436.9,2436.8,4.10357891]
[1750942448051,0.2048,2436.9,2436.8,4.10374261]
[1750942449790,0.2048,2436.9,2436.8,5.61240494]
[1750942450102,1.77951093,2438.1,2437.5,4.10242577]
[1750942450386,0.2048,2437.7,2437.5,4.10245086]
[1750942450562,0.97501093,2437.9,2437.4,8.727]
[1750942450772,0.97501093,2437.9,2437.2,5.09831279]
[1750942450773,0.2048,2437.5,2437.2,0.7905]
[1750942450986,0.2048,2437.3,2437.2,8.733]
[1750942451167,0.2048,2437.3,2437.2,12.83601782]
[1750942451568,0.2048,2437.3,2437.2,8.733]
[1750942452358,0.2048,2437.3,2437.2,8.732]
[1750942452559,0.2048,2437.3,2437.1,6.885]
[1750942452762,0.55,2437.5,2437.1,6.885]
[1750942454564,0.2048,2437.1,2437.0,8.728]
[1750942455294,0.2048,2437.1,2437.0,6.879]
[1750942455474,0.2048,2437.1,2436.8,4.91379382]
[1750942455796,0.55,2437.5,2436.9,8.724]
[1750942455973,0.2048,2436.9,2436.8,4.10369382]
[1750942456171,0.2048,2436.9,2436.6,0.8226]
[1750942456374,0.55,2437.0,2436.7,8.723]
[1750942456582,0.2048,2436.8,2436.7,12.82688181]
[1750942458382,0.2048,2436.8,2436.7,12.82691102]
[1750942458606,0.2048,2436.8,2436.6,4.92658536]
[1750942459002,0.2048,2436.8,2436.7,8.721]
[1750942459617,0.2048,2436.8,2436.6,4.92658536]
[1750942459803,0.2048,2436.8,2436.7,10.97891102]
[1750942460000,0.2048,2436.8,2436.7,12.82491102]
[1750942460381,0.2048,2436.8,2436.7,14.60006066]
[1750942460699,0.97363231,2437.7,2436.7,14.60006066]
[1750942460700,0.8242,2437.5,2436.7,10.49614964]
[1750942460904,0.2048,2437.2,2437.1,4.10323745]
[1750942461523,0.2048,2437.4,2437.2,4.10299139]
[1750942461706,0.8192,2437.6,2437.3,6.871]
[1750942461906,0.8192,2437.6,2437.0,0.8105]
[1750942462222,0.55,2437.5,2437.1,6.875]
[1750942462717,0.55,2437.3,2437.1,6.875]
[1750942463115,0.55,2437.3,2436.7,4.10381697]
[1750942463315,0.2048,2436.9,2436.6,0.7611]
[1750942463617,0.8043,2437.2,2436.6,4.10406323]
[1750942463618,0.55,2437.1,2436.6,4.10406323]
[1750942463816,0.2048,2436.7,2436.6,5.95106323]
[1750942464020,0.2048,2436.7,2436.6,12.82706323]
[1750942464237,0.2048,2436.7,2436.4,0.7611]
[1750942464411,0.7865,2437.0,2436.4,1.847]
[1750942464604,0.2048,2436.5,2436.4,6.874]
[1750942464817,0.7548,2436.5,2436.4,6.874]
[1750942465033,0.55,2436.4,2436.3,16.72]
[1750942465235,0.55,2436.5,2436.3,16.72]
[1750942465629,0.55,2437.1,2436.4,4.10430256]
[1750942465827,0.55,2437.1,2436.5,4.1041548]
[1750942466228,0.2048,2436.6,2436.5,4.10424789]
[1750942466738,0.2048,2436.6,2436.5,10.98024789]
[1750942467100,0.2048,2436.6,2436.5,12.82624789]
[1750942467302,0.2048,2436.6,2436.5,15.23828018]
[1750942467938,1.3586,2437.1,2436.7,4.10384833]
[1750942468147,0.2048,2436.8,2436.6,4.10399624]
[1750942468444,0.2048,2436.8,2436.7,6.875]
[1750942468845,0.2048,2436.8,2436.7,10.97891102]
[1750942469342,0.2048,2436.8,2436.7,14.4232462]
[1750942471039,0.2048,2436.8,2436.7,5.7042462]
[1750942471239,0.2048,2436.8,2436.7,4.88301102]
[1750942471548,0.2048,2436.8,2436.7,12.80591102]
[1750942471746,0.2048,2436.8,2436.7,8.702]
[1750942472843,0.2048,2437.0,2436.9,4.10351781]
[1750942473027,0.2048,2437.0,2436.9,12.66244313]
[1750942473231,0.8285,2437.6,2437.2,4.10302792]
[1750942473434,0.2048,2437.3,2437.2,6.866]
[1750942473815,0.2048,2437.3,2437.2,10.96906909]
[1750942474236,0.2048,2437.3,2437.2,6.866]
[1750942476534,0.2048,2437.3,2437.2,10.96906909]
[1750942476738,0.8045,2437.9,2437.5,4.10251846]
[1750942476939,0.8045,2438.3,2437.6,10.96231654]
[1750942477129,0.2048,2437.8,2437.6,10.96231654]
[1750942477450,0.2048,2437.8,2437.6,6.86]
[1750942478246,0.2048,2437.8,2437.7,5.9382275]
[1750942481434,0.2048,2437.8,2437.7,1.836]
[1750942481958,0.2048,2437.8,2437.7,5.9382275]
[1750942483756,0.2048,2437.8,2437.7,1.836]
[1750942484135,0.2048,2437.8,2437.7,4.8677275]
[1750942484364,0.2048,2437.8,2437.6,1.0915659]
[1750942484365,0.2048,2437.8,2437.6,7.9435659]
[1750942484664,0.2048,2437.8,2437.6,6.852]
[1750942485021,0.2048,2437.8,2437.7,4.1022275]